Cogmind - Beta 14 @@@ ROGUE MODE // 2024.09.28 @ 03:50:54 Player: Cereal Killer Result: Destroyed by H-55 Commando with Assault Rifle Performance ------------- Evolutions (0) 0 Regions Visited (3) 600 Robots Destroyed (24) 120 Value Destroyed (930) 930 Prototype IDs (25) 500 Alien Tech Used (0) 0 Bonus (261) 261 TOTAL SCORE: 2411 Bonus ------- Aligned with FarCom 300 Friendly Fire -39 Cogmind --------- Core Integrity 0/250 Matter 257/300 Energy 100/100 System Corruption 3% Temperature Hot (216) Movement Walking (120) Location -10/Exiles Parts ------- > --- POWER (1) -------- (None) > --- PROPULSION (2) --- Carbon-fiber Leg > --- UTILITY (2) ------ Improved Heat Sink Small Storage Unit > --- WEAPON (2) ------- Beamcaster > --- INVENTORY (8) ---- Ion Engine Carbon-fiber Leg Carbon-fiber Leg Compact Wheel Improved Light Armor Plating Firepult Signal Generator Peak State ------------ > --- POWER ------------ Light Angular Momentum Engine > --- PROPULSION ------- Carbon-fiber Leg Carbon-fiber Leg > --- UTILITY ---------- Improved Heat Sink Small Storage Unit > --- WEAPON ----------- Firepult > --- INVENTORY -------- Ion Engine Carbon-fiber Leg Carbon-fiber Leg Compact Wheel Improved Light Armor Plating Beamcaster Grenade Launcher Signal Generator [Rating: 37] Favorites ----------- Power Ion Engine Engine Ion Engine Propulsion Carbon-fiber Leg Leg Carbon-fiber Leg Wheel Compact Wheel Utility Small Storage Unit Device Improved Heat Sink Storage Small Storage Unit Weapon Beamcaster Energy Gun Beamcaster Energy Cannon Firepult Ballistic Gun Assault Rifle Launcher Grenade Launcher Build | -11 -10 -10 -10 ------- Run | Yrd Mat Min Exi Slots Evolved . | . . . . Power . | . . . . Propulsion . | . . . . Utility . | . . . . Weapon . | . . . . Parts Attached 20 | 6 . 9 5 Power 3 | 1 . 2 . Engine 3 | 1 . 2 . Core . | . . . . Reactor . | . . . . Propulsion 4 | 2 . 2 . Treads . | . . . . Leg 2 | . . 2 . Wheel 2 | 2 . . . Hover . | . . . . Flight . | . . . . Utility 2 | 1 . 1 . Device 1 | . . 1 . Storage 1 | 1 . . . Processor . | . . . . Hackware . | . . . . Protection . | . . . . Artifact . | . . . . Weapon 11 | 2 . 4 5 Energy Gun 4 | 1 . 2 1 Energy Cannon 2 | . . . 2 Ballistic Gun 2 | 1 . 1 . Ballistic Cannon . | . . . . Launcher 3 | . . 1 2 Special Weapon . | . . . . Impact Weapon . | . . . . Slashing Weapon . | . . . . Piercing Weapon . | . . . . Special Melee Weapon . | . . . . Unidentified Prototypes . | . . . . Parts Lost 7 | . . 4 3 Power 2 | . . 1 1 Propulsion 2 | . . 1 1 Utility . | . . . . Weapon 3 | . . 2 1 Highest Loss Streak 3 | . . 3 3 To Critical Strikes . | . . . . Average Slot Usage (%) 81 | . 85 71 95 Engine 13 | . 14 13 13 Leg 14 | . . 4 28 Wheel 10 | . 28 18 . Device 7 | . . 2 14 Storage 14 | . 14 14 14 Energy Gun 14 | . 14 11 19 Energy Cannon 1 | . . . 2 Ballistic Gun 3 | . 14 6 . Peak Build Rating 37 | 6 6 22 37 Average Rating 14 | 3 6 7 25 On Entrance 8 | . 6 6 22 Naked Turns . | . . . . Heaviest Build 37 | 14 14 22 37 Greatest Support 32 | 32 32 32 30 Greatest Overweight (x) 1 | . . . 1 Average Overweight (x) . | . . . . Largest Inventory Capacity 8 | 8 8 8 8 Average Capacity 7 | 7 8 8 8 Most Carried 8 | 4 4 8 8 Average Carried 6 | 2 2 5 7 Final Capacity 8 | 8 8 8 8 Final Carried 8 | 2 4 8 8 Class Distribution -------------------- 50% | Scavenger-Mutant 49% | Mutant Dominant Class ---------------- Mutant | -10/Materials Mutant | -10/Mines Scavenger-Mutant | -10/Exiles Resources | -11 -10 -10 -10 ----------- Run | Yrd Mat Min Exi Matter Collected 604 | 228 . 346 30 Remotely . | . . . . Salvage Created 834 | . . 101 733 Parts 40 | . . 6 34 Haulers Intercepted . | . . . . Recyclers Shooed . | . . . . Parts Field Recycled . | . . . . Retrieved Matter . | . . . . Parts Self-Destructed . | . . . . Prevented . | . . . . Kills | -11 -10 -10 -10 ------- Run | Yrd Mat Min Exi Combat Hostiles Destroyed 24 | . . 5 19 Guns 2 | . . 2 . AOE 19 | . . 3 16 Classes Destroyed 7 | . . 2 5 Swarmer 3 | . . 3 . Grunt 10 | . . . 10 Brawler 2 | . . . 2 Sentry 2 | . . 2 . Demolisher 1 | . . . 1 Hunter 3 | . . . 3 Programmer 3 | . . . 3 Best Kill Streak 16 | . . 3 16 Combat Bots Only 16 | . . 3 16 Max Kills in Single Turn 5 | . . 2 5 Gunslinging . | . . . . Exploded 5 | . . 2 5 Melee . | . . . . Uniques/NPCs Destroyed . | . . . . Combat | -11 -10 -10 -10 -------- Run | Yrd Mat Min Exi Hostile Shots Fired 84 | . 12 40 32 Missed 27 | . 7 11 9 Damage Taken 981 | . 50 476 455 Core 260 | . . 157 103 Absorbed by Shields . | . . . . Core Remaining (%) 100 | 100 . . . Volleys Fired 33 | . . 14 19 Largest 2 | . . 2 2 Hottest 250 | . . 70 250 Shots Fired 44 | . . 22 22 Gun 34 | . . 20 14 Cannon 5 | . . . 5 Launcher 5 | . . 2 3 Special . | . . . . Kinetic 8 | . . 8 . Thermal 16 | . . 8 8 Explosive 5 | . . 2 3 Electromagnetic 15 | . . 4 11 Robot Hit Streak 5 | . . 3 5 Robot Miss Streak 5 | . . 5 2 Penetration Max . | . . . . Secondary Targets . | . . . . Shots Hit Robots 16 | . . 10 6 Core Hits 44 | . . 7 37 Critical Kills . | . . . . Critical Parts Destroyed . | . . . . Critical Strikes 1 | . . . 1 Burn 1 | . . . 1 Melee Attacks . | . . . . Impact . | . . . . Slashing . | . . . . Piercing . | . . . . Sneak Attacks . | . . . . Combat Hostiles . | . . . . Follow-up Attacks . | . . . . Damage Inflicted 1874 | . . 393 1481 Guns 189 | . . 120 69 Cannons 128 | . . . 128 Explosions 1557 | . . 273 1284 Melee . | . . . . Ramming . | . . . . Kinetic 38 | . . 38 . Thermal 933 | . . 127 806 Explosive 871 | . . 196 675 Electromagnetic 32 | . . 32 . Impact . | . . . . Slashing . | . . . . Piercing . | . . . . Highest Corruption 3 | . . . 3 Average Corruption 1 | . . . 1 Corruption Purged . | . . . . Corruption Blocked . | . . . . Effects 1 | . . . 1 Matter Fused 1 | . . . 1 Overload Shots . | . . . . Overflow Damage 29 | . . 22 7 Projectiles . | . . . . Explosions 29 | . . 22 7 Melee . | . . . . Knockbacks . | . . . . Impact . | . . . . Kinetic . | . . . . Secondary . | . . . . Self-Inflicted Damage 103 | . . 82 21 Shots 3 | . . 2 1 Rammed . | . . . . Targets Rammed . | . . . . Kicked . | . . . . Crushed . | . . . . Highest Temperature 372 | . . 27 372 Average Temperature 125 | . . 11 178 Received Heat Transfer 48 | . 15 9 24 Effects 2 | . . . 2 Energy Bleed 1 | . . . 1 Short Circuit 1 | . . . 1 Siege Activations . | . . . . Robots Corrupted . | . . . . Combat Hostiles . | . . . . Parts Fried . | . . . . Impact Corruptions . | . . . . Robots Melted 3 | . . . 3 Combat Hostiles 3 | . . . 3 Parts Melted 19 | . . 1 18 Heat Transferred 5283 | . . 298 4985 Parts Sabotaged . | . . . . Parts Stolen . | . . . . Parts Stripped . | . . . . Power Chain Reactions 1 | . . 1 . Alert | -11 -10 -10 -10 ------- Run | Yrd Mat Min Exi Peak Influence 86 | . . 86 . Initial . | . . . . Average 40 | . . 46 . Maximum Alert Level . | . . . . Low Security (%) 100 | 100 100 100 . Level 1 . | . . . . Level 2 . | . . . . Level 3 . | . . . . Level 4 . | . . . . Level 5 . | . . . . High Security . | . . . . Max Security . | . . . . Squads Dispatched 2 | . 1 1 . Investigation 1 | . 1 . . Extermination . | . . . . Reinforcement . | . . . . Assault 1 | . . 1 . Garrison . | . . . . Intercept . | . . . . Searches Triggered . | . . . . Construction Impeded . | . . . . Haulers Reinforced . | . . . . Active Scanning Responses . | . . . . Cargo Convoy Interrupts . | . . . . Stealth | -11 -10 -10 -10 --------- Run | Yrd Mat Min Exi Distress Signals . | . . . . Communications Jammed . | . . . . Distress Signals . | . . . . Times Spotted 39 | . 8 6 25 Peak Tracking Total 17 | . 8 3 17 Tactical Retreats 2 | . . 1 1 Traps | -11 -10 -10 -10 ------- Run | Yrd Mat Min Exi Traps Triggered . | . . . . Indirectly . | . . . . Trap Hack Attempts . | . . . . Triggered . | . . . . Disarmed . | . . . . Reprogrammed . | . . . . Reused . | . . . . Traps Extracted . | . . . . Installed . | . . . . Triggered . | . . . . Machines | -11 -10 -10 -10 ---------- Run | Yrd Mat Min Exi Machines Disabled 4 | . . . 4 Max in Single Turn 2 | . . . 2 Machines Repaired . | . . . . Machines Dismantled . | . . . . Machines Sabotaged . | . . . . Overloaded Fab Kills . | . . . . Hacking | -11 -10 -10 -10 --------- Run | Yrd Mat Min Exi Machines Accessed 2 | . 1 . 1 Terminals 1 | . 1 . . Fabricators . | . . . . Repair Stations . | . . . . Recycling Units . | . . . . Scanalyzers . | . . . . Garrison Access . | . . . . Total Hacks 5 | . 4 . 1 Successful 2 | . 1 . 1 Failed 3 | . 3 . . Catastrophic . | . . . . Database Lockouts . | . . . . Manual 5 | . 2 . 3 Terminals 4 | . 4 . . Fabricators . | . . . . Repair Stations . | . . . . Recycling Units . | . . . . Scanalyzers . | . . . . Garrison Access . | . . . . Terminal Hacks 2 | . 1 . 1 Prototype ID Bank 1 | . 1 . . Derelict Proto ID Bank 1 | . . . 1 Fabricator Hacks . | . . . . Repair Station Hacks . | . . . . Recycling Unit Hacks . | . . . . Scanalyzer . | . . . . Garrison Access Hacks . | . . . . Unauthorized Hacks . | . . . . Terminals . | . . . . Fabricators . | . . . . Repair Stations . | . . . . Recycling Units . | . . . . Scanalyzers . | . . . . Garrison Access . | . . . . Data Cores Recovered . | . . . . Used . | . . . . Hacking Detections 1 | . 1 . . Full Trace Events 1 | . 1 . . Feedback Events . | . . . . Feedback Blocked . | . . . . Robot Schematics Acquired . | . . . . Robots Built . | . . . . Authchips . | . . . . Time . | . . . . Total Robot Build Rating . | . . . . Part Schematics Acquired . | . . . . Parts Built . | . . . . Authchips . | . . . . Time . | . . . . Total Part Build Rating . | . . . . Parts Repaired . | . . . . Time . | . . . . Parts Recycled . | . . . . Recycled Matter . | . . . . Retrieved Matter . | . . . . Retrieved Components . | . . . . Parts Scanalyzed . | . . . . Part Schematics Acquired . | . . . . Parts Damaged . | . . . . Bothacking | -11 -10 -10 -10 ------------ Run | Yrd Mat Min Exi Used RIF Installer . | . . . . Robots Hacked . | . . . . Non-combat . | . . . . Combat . | . . . . Robot Hacks Applied . | . . . . Relay Couplers Released . | . . . . Fabnet Peak Effective % . | . . . . Robots Rewired . | . . . . Allies Hacked . | . . . . Hacks Repelled . | . . . . Allies | -11 -10 -10 -10 -------- Run | Yrd Mat Min Exi Total Allies 1 | . . 1 . Largest Group 1 | . . 1 1 Highest-Rated Group 31 | . . 31 31 Highest-Rated Ally 31 | . . 31 31 Total Orders . | . . . . Ally Attacks 6 | . . 3 3 Total Damage 84 | . . 64 20 Kills . | . . . . Allies Corrupted . | . . . . Allies Melted . | . . . . Intel | -11 -10 -10 -10 ------- Run | Yrd Mat Min Exi Robot Analysis Total . | . . . . Derelict Logs Recovered 1 | . . 1 . Drone Launches . | . . . . Drone Recoveries . | . . . . Exploration | -11 -10 -10 -10 ------------- Run | Yrd Mat Min Exi Turns Passed 1290 | 55 39 681 515 Spaces Moved 1015 | 43 38 586 348 Core 3 | 3 . . . Treads . | . . . . Legs 432 | . . 84 348 Wheels 580 | 40 38 502 . Hover . | . . . . Flight . | . . . . Fastest Speed 50 | 50 100 100 120 Average Speed 110 | 96 100 102 127 Slowest Speed 190 | 100 100 120 190 Overloaded Moves . | . . . . Propulsion Burnouts . | . . . . Robots Hopped . | . . . . Cave-ins Triggered . | . . . . Exploration Rate (%) 37 | 4 16 86 44 Regions Visited 3 Branch Regions 2 Pre-discovered Areas 1 | . . 1 . Known Exits Taken . | . . . . Unknown Exits Taken 3 | 1 1 1 . Scrap Searched 1 | . . 1 . Spaces Dug . | . . . . Terrain Destroyed 70 | . . 22 48 Melee . | . . . . Projectile 4 | . . . 4 AOE 66 | . . 22 44 Terrain Rammed . | . . . . Walls Destroyed . | . . . . Machines Disabled . | . . . . Actions | -11 -10 -10 -10 --------- Run | Yrd Mat Min Exi Total 1137 | 56 39 640 402 Wait 39 | . . 21 18 Move 1012 | 42 37 585 348 Hop . | . . . . Pick Up 24 | 8 2 10 4 Fast Attach 1 | . . . 1 Attach 15 | 6 . 5 4 Detach 2 | . . . 2 Swap 4 | . . 4 . Drop 7 | . . 1 6 Fire 33 | . . 14 19 Melee . | . . . . Ram . | . . . . Kick . | . . . . Crush . | . . . . Escape Stasis . | . . . . Rewire . | . . . . Trap . | . . . . Miscellaneous . | . . . . Route ------- -11/Scrapyard -10/Materials -10/Mines (discovered 2 exits: [*Mat] / *Exi) -10/Exiles (discovered 1 exit: [*Min]) History --------- Turn | Location | Event 19 | -11/Scrapyard | Discovered new exit (range 15) 56 | -11/Scrapyard | Entered Materials 90 | -10/Materials | Discovered new exit (range 6) 95 | -10/Materials | Entered Mines 96 | -10/Mines | YI-UF0 nonchalantly dropped a Grenade Launcher on the ground 143 | -10/Mines | Learned location of Storage (-8) 309 | -10/Mines | Build established: Mutant 438 | -10/Mines | Lost 3 parts (1n2w) 459 | -10/Mines | Met a Derelict testing a Signal Generator 471 | -10/Mines | Found Signal Generator 581 | -10/Mines | Discovered new exit (range 5) 639 | -10/Mines | Joined a pair of Derelicts in attacking an 0b10 outpost 654 | -10/Mines | Core integrity fell below 50% 765 | -10/Mines | Deemed a non-threat by the Exiles lab entrance 767 | -10/Mines | Discovered new exit (range 5) 776 | -10/Mines | Entered Exiles 776 | -10/Exiles | Accompanied by 1 ally 794 | -10/Exiles | Discovered new exit (range 15) 806 | -10/Exiles | Met 8R-AWN 826 | -10/Exiles | Met EX-HEX 863 | -10/Exiles | Met EX-BIN 948 | -10/Exiles | Build established: Scavenger-Mutant 1060 | -10/Exiles | Aligned with FarCom system 1061 | -10/Exiles | Given EX-Vault access code 1089 | -10/Exiles | Opened EX-Vault 1095 | -10/Exiles | Found Gui. Plasma Cannon 1103 | -10/Exiles | Found Firepult 1129 | -10/Exiles | Warned to stay clear of 0b10 Research branches 1143 | -10/Exiles | Exiles lab attacked by MAIN.C 1252 | -10/Exiles | Lost 3 allies 1276 | -10/Exiles | Core integrity fell below 20% 1291 | -10/Exiles | Destroyed by H-55 Commando with Assault Rifle Last Messages --------------- G-34 Mercenary heat damages Ion Engine. Acquired Broken Firepult. P-60 Hacker heat damages Imp. Heat Sink. Destroyed Shock Rifle. G-34 Mercenary destroyed. P-60 Hacker destroyed. Machine disabled. G-34 Mercenary destroyed. Machine disabled. H-55 Commando suffers critical hit (Burn). H-55 Commando destroyed. G-34 Mercenary destroyed. Penetrated by Slug. B-36 Bruiser destroyed. Grenade Launcher destroyed. Penetrated by Slug. Lgt. Angular Momentum Engine destroyed. Penetrated by Slug. Carbon-fiber Leg destroyed. Penetrated by Slug. Map ----- +----------------------------------------------------+ | ""#??????????????????????????????????????????????? | | ""#??????????????????????????????????????????????? | | ""#??????????????????????????????????????????????? | | ""#??????????????????????????????????????????????? | | ""#??????????????????????????????????????????????? | | ""#??????????????????????????????????????????????? | | ""#??????????????????????????????????????????????? | | ""#??????????????????????????????????????????????? | | ""#??????????????????????????????????????????????? | | ""##?????????????????????????????????????????????? | | """"?????????????????????????????????????????????? | | ""##?????????????????????????????????????????????? | | """"?????????????????????????????????????????????? | | # ?????????????????????????????????????????????? | | ""#??????????????????????????????????????????????? | | ###??????????????????????????????????????????????? | | ?????????????????????????????????????????????????? | | ??????????????????????????????????????????????? ?? | | ????????????????????????????????????????????? < # | | #########???????????????????????????????????? # | | """"""""##??????????????????????????????????? ? | | """ """"##?????????????????????????????????# #? | | "" " #???????????????????????????????## ## | | " """#???????????????????????????????# # | | " "#??????????# ####???????????????# # | | " "##?????????# @#??????????????## # | | ""###???????# l= #????????????## #?? | | """#??????##" %*%#????????????# #?? | | "######## % % ##?????#??### #??? | | ## # =[=####""###" #??? | | "#% %% = gh%#"" "" % ##??? | | ! * ";! %= %[% %[p%=% %* ##??? | | ! !% =% !%==# %=[==[[ #??? | | = % ;# =h*h** ##?? | | # [![% ### | | # ;# ### "## * # | | ####### #??# # ###### | | ##?????###???## ###????### | | " ##???????????????# #????????### | | """ ""#?????????????????????????????### | | ""#" "##??????????????????????????????#" | | """##"""""""##???????????????????????????????#### | | "???#########???????????????????????????????????# | | ????????????????????????????????????????????????## | | ?????????????????????????????????????????????????# | | ?????????????????????????????????????????????????? | | ?????????????????????????????????????????????????? | | ?????????????????????????????????????????????????? | | ?????????????????????????????????????????????????? | | ?????????????????????????????????????????????????? | +----------------------------------------------------+ Best States ------------- Heat Dissipation 39 Energy Generation 18 Energy Capacity 250 Matter Stores 300 Matter Capacity 300 Sight Range 16 Terrain Scan Density 10 Evasion (%) 55 Item Schematics ----------------- None Robot Schematics ------------------ None Fabricated ------------ Nothing Alien Tech Used ----------------- None Achievements -------------- None Challenges ------------ None Game ------ Seed TimingBombMicroactuators Manual? 0 Play Time 00:16:19 Cumulative 209.6 hours Start 2024.09.28 @ 03:37:28 End 2024.09.28 @ 03:50:54 Sessions 1 Manual Loads 0 Difficulty Rogue Special Mode None Game No. 174 Rogue 165 Adventurer 9 Explorer 0 Win Type - Total 1 Types 1/0/0/0/0/0/0/0/0 Lore% 70 Gallery% 71 Achievement% 57 Wizard Run 0 Options --------- Layout 1 ASCII 0 Keyboard 0 Movement Numpad Keybinds 0 Fullscreen 1 Font 24/Smallcaps Map View 50x35 Zoom Use 0% Tactical HUD 0 Map Filters NONE Filters NONE Steam 1 RUN: 25ad61b3-102b-44bd-a0e4-6cd57f1b3898